fUSD/lending_fUSD_20241223
["ID","MTS","AMOUNT","RATE_DAILY","PERIOD"]
[346454586,1734983441331,-2526.97,0.00013698,2]
[346454587,1734983441340,-500.0,0.00013698,2]
[346454588,1734983441349,-500.0,0.00013698,2]
[346454589,1734983441358,-500.0,0.00013698,2]
[346454590,1734983441367,-500.0,0.00013698,2]
[346454591,1734983441377,-500.0,0.00013698,2]
[346454592,1734983441386,-500.0,0.00013698,2]
[346454593,1734983441395,-500.0,0.00013698,2]
[346454594,1734983441405,-500.40986044,0.00013698,2]
[346454595,1734983441414,-500.0,0.00013698,2]
[346454596,1734983441423,-500.0,0.00013698,2]
[346454597,1734983441433,-500.0,0.00013698,2]
[346454598,1734983441442,-500.0,0.00013698,2]
[346454599,1734983441451,-500.0,0.00013698,2]
[346454600,1734983441460,-500.0,0.00013698,2]
[346454601,1734983441470,-500.0,0.00013698,2]
[346454602,1734983441479,-518.27538464,0.00013698,2]
[346454603,1734983441489,-588.45,0.00013698,2]
[346454604,1734983441498,-562.03,0.00013698,2]
[346454605,1734983441507,-500.0,0.00013698,2]
[346454606,1734983441517,-500.0,0.00013698,2]
[346454607,1734983441526,-500.0,0.00013698,2]
[346454608,1734983441536,-500.0,0.00013698,2]
[346454609,1734983441545,-2097.31,0.00013698,2]
[346454610,1734983441554,-500.0,0.00013698,2]
[346454611,1734983441564,-500.0,0.00013698,2]
[346454612,1734983441574,-500.0,0.00013698,2]
[346454613,1734983441583,-500.0,0.00013698,2]
[346454614,1734983441592,-2272.82,0.00013698,2]
[346454615,1734983441601,-1399.67,0.00013698,2]
[346454616,1734983441611,-503.36024694,0.00013698,2]
[346454617,1734983441620,-500.0,0.00013698,2]
[346454618,1734983441629,-500.0,0.00013698,2]
[346454619,1734983441639,-500.0,0.00013698,2]
[346454620,1734983441648,-500.0,0.00013698,2]
[346454621,1734983441657,-1081.13,0.00013698,2]
[346454622,1734983441667,-500.0,0.00013698,2]
[346454623,1734983441676,-952.35,0.00013698,2]
[346454624,1734983441686,-502.0736029,0.00013698,2]
[346454625,1734983441694,-505.39490859,0.00013698,2]
[346454626,1734983441704,-500.0,0.00013698,2]
[346454627,1734983441713,-500.0,0.00013698,2]
[346454628,1734983441722,-766.53,0.00013698,2]
[346454629,1734983441732,-500.0,0.00013698,2]
[346454630,1734983441741,-500.0,0.00013698,2]
[346454631,1734983441750,-971.56,0.00013698,2]
[346454632,1734983441759,-500.0,0.00013698,2]
[346454633,1734983441769,-1033.9,0.00013698,2]
[346454634,1734983441778,-908.96,0.00013698,2]
[346454635,1734983441787,-1920.11,0.00013698,2]
[346454636,1734983441796,-500.0,0.00013698,2]
[346454637,1734983441806,-501.1780975,0.00013698,2]
[346454638,1734983441815,-500.0,0.00013698,2]
[346454639,1734983441824,-500.0,0.00013698,2]
[346454640,1734983441834,-500.0,0.00013698,2]
[346454641,1734983441843,-500.0,0.00013698,2]
[346454642,1734983441852,-500.0,0.00013698,2]
[346454643,1734983441862,-500.0,0.00013698,2]
[346454644,1734983441871,-500.0,0.00013698,2]
[346454645,1734983441881,-500.0,0.00013698,2]
[346454646,1734983441890,-1220.95,0.00013698,2]
[346454647,1734983441900,-500.0,0.00013698,2]
[346454648,1734983441909,-500.0,0.00013698,2]
[346454649,1734983441920,-500.0,0.00013698,2]
[346454650,1734983441929,-500.0,0.00013698,2]
[346454651,1734983441939,-549.68,0.00013698,2]
[346454652,1734983441948,-2597.65,0.00013698,2]
[346454653,1734983441957,-502.15957649,0.00013698,2]
[346454654,1734983441966,-500.0,0.00013698,2]
[346454655,1734983441975,-500.0,0.00013698,2]
[346454656,1734983441985,-500.0,0.00013698,2]
[346454657,1734983441994,-500.0,0.00013698,2]
[346454658,1734983442003,-502.53061393,0.00013698,2]
[346454659,1734983442013,-500.0,0.00013698,2]
[346454660,1734983442022,-500.0,0.00013698,2]
[346454661,1734983442032,-503.47044237,0.00013698,2]
[346454662,1734983442042,-500.0,0.00013698,2]
[346454663,1734983442051,-504.8413368,0.00013698,2]
[346454664,1734983442060,-500.0,0.00013698,2]
[346454665,1734983442069,-1679.77,0.00013698,2]
[346454666,1734983442078,-500.0,0.00013698,2]
[346454667,1734983442087,-500.0,0.00013698,2]
[346454668,1734983442097,-500.0,0.00013698,2]
[346454669,1734983442106,-500.0,0.00013698,2]
[346454670,1734983442116,-500.0,0.00013698,2]
[346454671,1734983442125,-500.0,0.00013698,2]
[346454672,1734983442134,-500.0,0.00013698,2]
[346454673,1734983442142,-2479.89,0.00013698,2]
[346454674,1734983442151,-500.0,0.00013698,2]
[346454675,1734983442160,-500.0,0.00013698,2]
[346454676,1734983442169,-500.0,0.00013698,2]
[346454677,1734983442178,-500.0,0.00013698,2]
[346454678,1734983442187,-409.06659975,0.00013698,2]
[346454679,1734983442196,-500.0,0.00013698,2]
[346454680,1734983442209,-500.0,0.00013698,2]
[346454681,1734983442217,-884.3,0.00013698,2]
[346454682,1734983442227,-533.99,0.00013698,2]
[346454683,1734983442236,-500.0,0.00013698,2]
[346454684,1734983442244,-1337.77,0.00013698,2]
[346454685,1734983442256,-277.94542056,0.00013698,2]
[346454686,1734983442265,-500.0,0.00013698,2]
[346454687,1734983442274,-1234.01,0.00013698,2]
[346454688,1734983442283,-500.0,0.00013698,2]
[346454689,1734983442292,-500.0,0.00013698,2]
[346454690,1734983442301,-500.0,0.00013698,2]
[346454691,1734983442310,-500.0,0.00013698,2]
[346454692,1734983442319,-500.0,0.00013698,2]
[346454693,1734983442328,-500.0,0.00013698,2]
[346454694,1734983442337,-1693.27,0.00013698,2]
[346454695,1734983442345,-500.0,0.00013698,2]
[346454696,1734983442354,-558.13415939,0.00013698,2]
[346454697,1734983442363,-500.0,0.00013698,2]
[346454698,1734983442372,-1639.66,0.00013698,2]
[346454699,1734983442381,-500.0,0.00013698,2]
[346454700,1734983442390,-1258.33,0.00013698,2]
[346454701,1734983442399,-500.0,0.00013698,2]
[346454702,1734983442409,-500.0,0.00013698,2]
[346454703,1734983442418,-500.0,0.00013698,2]
[346454704,1734983442427,-865.68,0.00013698,2]
[346454705,1734983442436,-500.0,0.00013698,2]
[346454706,1734983442445,-500.0,0.00013698,2]
[346454707,1734983442454,-1242.29,0.00013698,2]
[346454708,1734983442463,-500.0,0.00013698,2]
[346454709,1734983442473,-500.0,0.00013698,2]
[346454710,1734983442482,-558.44,0.00013698,2]
[346454711,1734983442491,-500.0,0.00013698,2]
[346454712,1734983442501,-1883.5,0.00013698,2]
[346454713,1734983442510,-500.0,0.00013698,2]
[346454714,1734983442520,-500.0,0.00013698,2]
[346454715,1734983442529,-500.0,0.00013698,2]
[346454716,1734983442538,-500.0,0.00013698,2]
[346454717,1734983442547,-500.0,0.00013698,2]
[346454718,1734983442556,-500.0,0.00013698,2]
[346454719,1734983442566,-502.2826866,0.00013698,2]
[346454720,1734983442575,-1457.31,0.00013698,2]
[346454722,1734983442584,-500.0,0.00013698,2]
[346454723,1734983442593,-500.0,0.00013698,2]
[346454725,1734983442603,-500.0,0.00013698,2]
[346454727,1734983442612,-500.0,0.00013698,2]
[346454729,1734983442621,-500.0,0.00013698,2]
[346454731,1734983442631,-744.66,0.00013698,2]
[346454733,1734983442639,-505.95,0.00013698,2]
[346454734,1734983442649,-500.0,0.00013698,2]
[346454735,1734983442658,-500.0,0.00013698,2]
[346454736,1734983442667,-614.05,0.00013698,2]
[346454738,1734983442677,-500.0,0.00013698,2]
[346454741,1734983442686,-500.0,0.00013698,2]
[346454744,1734983442696,-500.0,0.00013698,2]
[346454746,1734983442706,-1106.29,0.00013698,2]
[346454748,1734983442715,-825.99,0.00013698,2]
[346454750,1734983442724,-614.73,0.00013698,2]
[346454752,1734983442733,-598.56,0.00013698,2]
[346454754,1734983442742,-2428.41,0.00013698,2]
[346454757,1734983442752,-500.0,0.00013698,2]
[346454760,1734983442762,-497.76778129,0.00013698,2]
[346454763,1734983442771,-647.89,0.00013698,2]
[346454765,1734983442780,-555.89,0.00013698,2]
[346454767,1734983442789,-500.0,0.00013698,2]
[346454769,1734983442798,-500.0,0.00013698,2]
[346454771,1734983442808,-1850.68,0.00013698,2]
[346454772,1734983442817,-500.0,0.00013698,2]
[346454773,1734983442826,-733.51,0.00013698,2]
[346454774,1734983442840,-1395.61,0.00013698,2]
[346454775,1734983442850,-500.0,0.00013698,2]
[346454776,1734983442860,-500.0,0.00013698,2]
[346454777,1734983442870,-504.10622799,0.00013698,2]
[346454778,1734983442879,-500.0,0.00013698,2]
[346454779,1734983442888,-500.0,0.00013698,2]
[346454780,1734983442898,-500.0,0.00013698,2]
[346454781,1734983442908,-1898.84,0.00013698,2]
[346454782,1734983442918,-500.0,0.00013698,2]
[346454783,1734983442927,-500.0,0.00013698,2]
[346454784,1734983442937,-517.05002436,0.00013698,2]
[346454785,1734983442947,-1190.22,0.00013698,2]
[346454786,1734983442956,-500.0,0.00013698,2]
[346454787,1734983442966,-520.67,0.00013698,2]
[346454788,1734983442976,-500.0,0.00013698,2]
[346454789,1734983442986,-659.78,0.00013698,2]
[346454790,1734983442996,-500.0,0.00013698,2]
[346454791,1734983443005,-706.12,0.00013698,2]
[346454792,1734983443015,-500.0,0.00013698,2]
[346454793,1734983443025,-500.0,0.00013698,2]
[346454794,1734983443035,-1161.74,0.00013698,2]
[346454795,1734983443044,-792.15,0.00013698,2]
[346454796,1734983443053,-1198.3,0.00013698,2]
[346454797,1734983443063,-500.0,0.00013698,2]
[346454798,1734983443072,-1131.14,0.00013698,2]
[346454799,1734983443082,-500.0,0.00013698,2]
[346454800,1734983443091,-500.0,0.00013698,2]
[346454801,1734983443101,-500.0,0.00013698,2]
[346454802,1734983443110,-1629.86,0.00013698,2]
[346454803,1734983443120,-500.0,0.00013698,2]
[346454804,1734983443129,-500.0,0.00013698,2]
[346454805,1734983443139,-977.33,0.00013698,2]
[346454806,1734983443148,-548.69,0.00013698,2]
[346454807,1734983443157,-500.0,0.00013698,2]
[346454808,1734983443167,-500.0,0.00013698,2]
[346454809,1734983443176,-500.0,0.00013698,2]
[346454810,1734983443185,-500.0,0.00013698,2]
[346454811,1734983443195,-500.0,0.00013698,2]
[346454812,1734983443204,-500.0,0.00013698,2]
[346454813,1734983443217,-500.0,0.00013698,2]
[346454814,1734983443227,-628.27,0.00013698,2]
[346454815,1734983443236,-599.12,0.00013698,2]
[346454816,1734983443245,-500.0,0.00013698,2]
[346454817,1734983443256,-1391.9,0.00013698,2]
[346454818,1734983443266,-500.0,0.00013698,2]
[346454819,1734983443276,-500.0,0.00013698,2]
[346454820,1734983443287,-500.0,0.00013698,2]
[346454821,1734983443297,-500.0,0.00013698,2]
[346454822,1734983443307,-2005.44,0.00013698,2]
[346454823,1734983443316,-542.39723559,0.00013698,2]
[346454824,1734983443326,-506.04973454,0.00013698,2]
[346454825,1734983443335,-700.0,0.00013698,2]
[346454826,1734983443344,-500.0,0.00013698,2]
[346454827,1734983443354,-500.0,0.00013698,2]
[346454828,1734983443363,-500.0,0.00013698,2]
[346454829,1734983443371,-332.78140525,0.00013698,2]
[346454830,1734983443381,-500.0,0.00013698,2]
[346454831,1734983443390,-1352.65,0.00013698,2]
[346454832,1734983443399,-500.0,0.00013698,2]
[346454833,1734983443408,-2203.91,0.00013698,2]
[346454834,1734983443417,-929.9,0.00013698,2]
[346454835,1734983443426,-500.0,0.00013698,2]
[346454836,1734983443435,-1256.82,0.00013698,2]
[346454837,1734983443445,-582.13,0.00013698,2]
[346454838,1734983443454,-500.0,0.00013698,2]
[346454839,1734983443463,-500.0,0.00013698,2]
[346454840,1734983443472,-500.0,0.00013698,2]
[346454841,1734983443481,-500.0,0.00013698,2]
[346454842,1734983443490,-500.0,0.00013698,2]
[346454843,1734983443502,-1626.83,0.00013698,2]
[346454844,1734983443512,-545.8554983,0.00013698,2]
[346454845,1734983443521,-821.99,0.00013698,2]
[346454846,1734983443530,-500.0,0.00013698,2]
[346454847,1734983443540,-500.0,0.00013698,2]
[346454848,1734983443549,-500.0,0.00013698,2]
[346454849,1734983443559,-501.34916681,0.00013698,2]
[346454850,1734983443568,-1342.26,0.00013698,2]
[346454851,1734983443578,-6402.42,0.00013698,2]
[346454852,1734983443587,-500.0,0.00013698,2]
[346454853,1734983443596,-926.8,0.00013698,2]
[346454854,1734983443606,-1227.45,0.00013698,2]
[346454855,1734983443615,-500.0,0.00013698,2]
[346454856,1734983443624,-1859.49,0.00013698,2]
[346454857,1734983443633,-500.0,0.00013698,2]
[346454858,1734983443643,-501.71787192,0.00013698,2]
[346454859,1734983443653,-500.0,0.00013698,2]
[346454860,1734983443662,-614.72,0.00013698,2]
[346454861,1734983443672,-500.0,0.00013698,2]
[346454862,1734983443681,-1326.67,0.00013698,2]
[346454863,1734983443691,-500.0,0.00013698,2]
[346454864,1734983443700,-500.0,0.00013698,2]
[346454865,1734983443709,-500.0,0.00013698,2]
[346454866,1734983443718,-500.0,0.00013698,2]
[346454867,1734983443727,-596.52,0.00013698,2]
[346454868,1734983443737,-175.65237267,0.00013698,2]
[346454869,1734983443747,-500.0,0.00013698,2]
[346454870,1734983443756,-1015.69,0.00013698,2]
[346454871,1734983443766,-500.0,0.00013698,2]
[346454872,1734983443775,-500.0,0.00013698,2]
[346454873,1734983443786,-1210.05,0.00013698,2]
[346454874,1734983443797,-502.05344853,0.00013698,2]
[346454875,1734983443807,-1848.4,0.00013698,2]
[346454876,1734983443816,-574.22,0.00013698,2]
[346454877,1734983443825,-1285.29,0.00013698,2]
[346454878,1734983443835,-500.0,0.00013698,2]
[346454879,1734983443844,-500.0,0.00013698,2]
[346454880,1734983443854,-500.0,0.00013698,2]
[346454881,1734983443863,-502.54713006,0.00013698,2]
[346454882,1734983443872,-500.0,0.00013698,2]
[346454883,1734983443882,-2751.45,0.00013698,2]
[346454884,1734983443891,-500.0,0.00013698,2]
[346454885,1734983443901,-1128.87,0.00013698,2]
[346454886,1734983443911,-500.0,0.00013698,2]
[346454887,1734983443921,-6056.43,0.00013698,2]
[346454888,1734983443930,-683.58,0.00013698,2]
[346454889,1734983443940,-1154.43,0.00013698,2]
[346454890,1734983443949,-500.0,0.00013698,2]
[346454891,1734983443959,-500.0,0.00013698,2]
[346454892,1734983443969,-500.0,0.00013698,2]
[346454893,1734983443979,-11553.88,0.00013698,2]
[346454894,1734983443990,-3461.58,0.00013698,2]
[346454895,1734983444004,-2563.93,0.00013698,2]
[346454896,1734983444015,-1292.7,0.00013698,2]
[346454897,1734983444028,-501.23492446,0.00013698,2]
[346454898,1734983444039,-500.0,0.00013698,2]
[346454899,1734983444050,-573.10732797,0.00013698,2]
[346454900,1734983444059,-502.30394919,0.00013698,2]
[346454901,1734983444069,-500.0,0.00013698,2]
[346454902,1734983444078,-500.0,0.00013698,2]
[346454903,1734983444087,-2781.72,0.00013698,2]
[346454904,1734983444097,-1045.69,0.00013698,2]
[346454905,1734983444106,-500.0,0.00013698,2]
[346454906,1734983444116,-554.57,0.00013698,2]
[346454907,1734983444125,-1274.89,0.00013698,2]
[346454908,1734983444135,-500.0,0.00013698,2]
[346454909,1734983444144,-500.0,0.00013698,2]
[346454910,1734983444153,-500.0,0.00013698,2]
[346454911,1734983444162,-1146.69,0.00013698,2]
[346454912,1734983444171,-500.0,0.00013698,2]
[346454913,1734983444180,-948.38,0.00013698,2]
[346454914,1734983444189,-500.0,0.00013698,2]
[346454915,1734983444198,-1729.1,0.00013698,2]
[346454916,1734983444210,-500.0,0.00013698,2]
[346454917,1734983444220,-500.0,0.00013698,2]
[346454918,1734983444230,-1060.71,0.00013698,2]
[346454919,1734983444240,-15575.1,0.00013698,2]
[346454920,1734983444251,-500.0,0.00013698,2]
[346454921,1734983444261,-1437.23,0.00013698,2]
[346454922,1734983444270,-500.0,0.00013698,2]
[346454923,1734983444279,-3891.1,0.00013698,2]
[346454924,1734983444289,-544.40529518,0.00013698,2]
[346454925,1734983444298,-920.78,0.00013698,2]
[346454926,1734983444307,-2142.93,0.00013698,2]
[346454927,1734983444316,-736.03,0.00013698,2]
[346454928,1734983444325,-500.0,0.00013698,2]
[346454929,1734983444334,-1226.17,0.00013698,2]
[346454930,1734983444343,-500.0,0.00013698,2]
[346454931,1734983444352,-500.0,0.00013698,2]
[346454932,1734983444361,-500.0,0.00013698,2]
[346454933,1734983444369,-500.0,0.00013698,2]
[346454934,1734983444379,-1074.33,0.00013698,2]
[346454935,1734983444388,-500.0,0.00013698,2]
[346454936,1734983444398,-6302.87,0.00013698,2]
[346454937,1734983444408,-3579.93,0.00013698,2]
[346454938,1734983444417,-678.95,0.00013698,2]
[346454939,1734983444426,-1468.11,0.00013698,2]
[346454940,1734983444436,-500.0,0.00013698,2]
[346454941,1734983444445,-695.77,0.00013698,2]
[346454942,1734983444454,-7214.02,0.00013698,2]
[346454943,1734983444464,-500.0,0.00013698,2]
[346454944,1734983444473,-501.10928318,0.00013698,2]
[346454945,1734983444482,-500.0,0.00013698,2]
[346454946,1734983444492,-6586.38,0.00013698,2]
[346454947,1734983444502,-500.0,0.00013698,2]
[346454948,1734983444514,-500.0,0.00013698,2]
[346454949,1734983444523,-500.0,0.00013698,2]
[346454950,1734983444534,-500.0,0.00013698,2]
[346454951,1734983444544,-500.0,0.00013698,2]
[346454952,1734983444554,-1410.03,0.00013698,2]
[346454953,1734983444563,-500.0,0.00013698,2]
[346454954,1734983444573,-500.0,0.00013698,2]
[346454955,1734983444583,-1472.35,0.00013698,2]
[346454956,1734983444593,-2688.66,0.00013698,2]
[346454957,1734983444602,-500.0,0.00013698,2]
[346454958,1734983444612,-500.0,0.00013698,2]
[346454959,1734983444621,-500.0,0.00013698,2]
[346454960,1734983444876,-500.0,0.00013698,2]
[346454961,1734983444886,-1255.72,0.00013698,2]
[346454962,1734983444895,-1233.64,0.00013698,2]
[346454963,1734983444905,-500.0,0.00013698,2]
[346454964,1734983444915,-546.95,0.00013698,2]
[346454965,1734983444924,-546.95,0.00013698,2]
[346454966,1734983444934,-546.95,0.00013698,2]
[346454967,1734983444944,-546.95,0.00013698,2]
[346454968,1734983444954,-546.95,0.00013698,2]
[346454969,1734983444963,-503.67713597,0.00013698,2]
[346454970,1734983444972,-546.95,0.00013698,2]
[346454971,1734983444981,-701.82,0.00013698,2]
[346454972,1734983444991,-5090.58,0.00013698,2]
[346454973,1734983445000,-546.95,0.00013698,2]
[346454974,1734983445010,-546.95,0.00013698,2]
[346454975,1734983445019,-546.95,0.00013698,2]
[346454976,1734983445029,-500.0,0.00013698,2]
[346454977,1734983445037,-546.95,0.00013698,2]
[346454978,1734983445046,-546.95,0.00013698,2]
[346454979,1734983445056,-546.95,0.00013698,2]
[346454980,1734983445065,-3635.2,0.00013698,2]
[346454981,1734983445075,-546.95,0.00013698,2]
[346454982,1734983445084,-500.0,0.00013698,2]
[346454983,1734983445093,-546.95,0.00013698,2]
[346454984,1734983445103,-500.0,0.00013698,2]
[346454985,1734983445112,-869.32,0.00013698,2]
[346454986,1734983445122,-546.95,0.00013698,2]
[346454987,1734983445131,-500.0,0.00013698,2]
[346454988,1734983445140,-546.95,0.00013698,2]
[346454989,1734983445149,-1046.58,0.00013698,2]
[346454990,1734983445158,-627.84,0.00013698,2]
[346454991,1734983445168,-546.95,0.00013698,2]
[346454992,1734983445178,-4671.0,0.00013698,2]
[346454993,1734983445187,-546.95,0.00013698,2]
[346454994,1734983445197,-546.95,0.00013698,2]
[346454995,1734983445209,-546.95,0.00013698,2]
[346454996,1734983445220,-546.95,0.00013698,2]
[346454997,1734983445230,-546.95,0.00013698,2]
[346454998,1734983445239,-546.95,0.00013698,2]
[346454999,1734983445248,-547.11345102,0.00013698,2]
[346455000,1734983445258,-500.0,0.00013698,2]
[346455001,1734983445267,-4686.61,0.00013698,2]
[346455002,1734983445278,-500.0,0.00013698,2]
[346455003,1734983445288,-630.7,0.00013698,2]
[346455004,1734983445298,-820.95,0.00013698,2]
[346455005,1734983445308,-500.0,0.00013698,2]
[346455006,1734983445318,-500.0,0.00013698,2]
[346455007,1734983445327,-1130.83,0.00013698,2]
[346455008,1734983445336,-1836.15,0.00013698,2]
[346455009,1734983445346,-2995.53,0.00013698,2]
[346455010,1734983445355,-2323.91,0.00013698,2]
[346455011,1734983445365,-516.26,0.00013698,2]
[346455012,1734983445375,-500.0,0.00013698,2]
[346455013,1734983445386,-1155.82,0.00013698,2]
[346455014,1734983445395,-500.0,0.00013698,2]
[346455015,1734983445405,-1123.17,0.00013698,2]
[346455016,1734983445415,-501.27730481,0.00013698,2]
[346455017,1734983445424,-2403.14,0.00013698,2]
[346455018,1734983445434,-500.0,0.00013698,2]
[346455019,1734983445443,-810.25,0.00013698,2]
[346455020,1734983445452,-902.0,0.00013698,2]
[346455021,1734983445461,-1314.92,0.00013698,2]
[346455022,1734983445471,-500.0,0.00013698,2]
[346455023,1734983445481,-502.97732607,0.00013698,2]
[346455024,1734983445490,-500.0,0.00013698,2]
[346455025,1734983445501,-500.0,0.00013698,2]
[346455026,1734983445510,-5525.58,0.00013698,2]
[346455027,1734983445519,-512.09,0.00013698,2]
[346455028,1734983445529,-500.0,0.00013698,2]
[346455029,1734983445539,-500.0,0.00013698,2]
[346455030,1734983445548,-500.0,0.00013698,2]
[346455031,1734983445558,-666.71,0.00013698,2]
[346455032,1734983445567,-2455.92,0.00013698,2]
[346455033,1734983445576,-872.99,0.00013698,2]
[346455034,1734983445586,-4918.98,0.00013698,2]
[346455035,1734983445595,-610.71873946,0.00013698,2]
[346455036,1734983445604,-500.0,0.00013698,2]
[346455037,1734983445614,-506.63584789,0.00013698,2]
[346455038,1734983445623,-500.0,0.00013698,2]
[346455039,1734983445633,-500.0,0.00013698,2]
[346455040,1734983445642,-500.0,0.00013698,2]
[346455041,1734983445651,-500.0,0.00013698,2]
[346455042,1734983445660,-4475.48,0.00013698,2]
[346455044,1734983445670,-579.5,0.00013698,2]
[346455046,1734983445679,-500.0,0.00013698,2]
[346455049,1734983445688,-676.19,0.00013698,2]
[346455051,1734983445698,-500.0,0.00013698,2]
[346455052,1734983445707,-500.0,0.00013698,2]
[346455053,1734983445716,-553.21,0.00013698,2]
[346455054,1734983445725,-8415.59,0.00013698,2]
[346455055,1734983445734,-792.97,0.00013698,2]
[346455057,1734983445743,-500.0,0.00013698,2]
[346455059,1734983445754,-3919.46,0.00013698,2]
[346455061,1734983445763,-834.47,0.00013698,2]
[346455063,1734983445772,-3391.19,0.00013698,2]
[346455065,1734983445781,-636.38,0.00013698,2]
[346455066,1734983445791,-500.0,0.00013698,2]
[346455067,1734983445800,-2742.37,0.00013698,2]
[346455068,1734983445809,-1027.57,0.00013698,2]
[346455069,1734983445818,-9012.3,0.00013698,2]
[346455070,1734983445827,-847.46,0.00013698,2]
[346455071,1734983445836,-500.0,0.00013698,2]
[346455072,1734983445845,-555.96,0.00013698,2]
[346455073,1734983445855,-500.0,0.00013698,2]
[346455074,1734983445864,-500.0,0.00013698,2]
[346455075,1734983445874,-500.0,0.00013698,2]
[346455076,1734983445883,-500.0,0.00013698,2]
[346455077,1734983445893,-500.0,0.00013698,2]
[346455078,1734983445902,-5252.8,0.00013698,2]
[346455079,1734983445911,-6315.37,0.00013698,2]
[346455080,1734983445921,-4008.04,0.00013698,2]
[346455081,1734983445930,-7027.53,0.00013698,2]
[346455082,1734983445940,-500.0,0.00013698,2]
[346455083,1734983445949,-502.15193499,0.00013698,2]
[346455084,1734983445959,-500.0,0.00013698,2]
[346455085,1734983445968,-1696.77,0.00013698,2]
[346455086,1734983445977,-5968.56,0.00013698,2]
[346455087,1734983445987,-500.0,0.00013698,2]
[346455088,1734983445996,-500.0,0.00013698,2]
[346455089,1734983446006,-500.0,0.00013698,2]
[346455090,1734983446016,-500.0,0.00013698,2]
[346455091,1734983446026,-500.0,0.00013698,2]
[346455092,1734983446035,-500.0,0.00013698,2]
[346455093,1734983446045,-500.0,0.00013698,2]
[346455094,1734983446054,-2000.3,0.00013698,2]
[346455095,1734983446063,-3154.52,0.00013698,2]
[346455096,1734983446073,-14873.62,0.00013698,2]
[346455097,1734983446082,-2211.27,0.00013698,2]
[346455098,1734983446091,-500.0,0.00013698,2]
[346455099,1734983446100,-500.0,0.00013698,2]
[346455100,1734983446109,-500.0,0.00013698,2]
[346455101,1734983446118,-1066.69,0.00013698,2]
[346455102,1734983446128,-500.0,0.00013698,2]
[346455104,1734983446137,-501.5906094,0.00013698,2]
[346455105,1734983446146,-500.0,0.00013698,2]
[346455107,1734983446156,-500.0,0.00013698,2]
[346455109,1734983446165,-365.01224451,0.00013698,2]
[346455111,1734983446174,-500.0,0.00013698,2]
[346455113,1734983446184,-500.0,0.00013698,2]
[346455114,1734983446193,-500.0,0.00013698,2]
[346455115,1734983446202,-500.0,0.00013698,2]
[346455116,1734983446216,-505.60316323,0.00013698,2]
[346455117,1734983446226,-500.0,0.00013698,2]
[346455118,1734983446235,-659.11,0.00013698,2]
[346455120,1734983446244,-18570.76,0.00013698,2]
[346455122,1734983446255,-500.0,0.00013698,2]
[346455123,1734983446264,-500.0,0.00013698,2]
[346455124,1734983446273,-3866.62,0.00013698,2]
[346455125,1734983446283,-564.57,0.00013698,2]
[346455126,1734983446292,-2330.64,0.00013698,2]
[346455127,1734983446301,-783.78,0.00013698,2]
[346455128,1734983446311,-500.0,0.00013698,2]